Cogmind - Beta 9.4 @@@ ROGUE MODE // 2020.01.26 @ 14:46:23 Player: derk Result: Destroyed by Y-64 Sentinel with Wave Gun Performance ------------- Evolutions (6) 3000 Regions Visited (11) 2200 Robots Destroyed (230) 1150 Value Destroyed (9848) 9848 Prototype IDs (17) 340 Alien Tech Used (0) 0 Bonus (2793) 2793 TOTAL SCORE: 19331 Bonus ------- High Alert Combat Kills 953 Follower Combat Kills 1141 Entered Garrisons 400 Used RIF Installer 500 Friendly Fire -201 Cogmind --------- Core Integrity 0/1150 Matter 46/300 Energy 14/100 System Corruption 14% Temperature Cool (9) Movement Core (100) Ox1 Location -4/Garrison Parts ------- > --- POWER (2) -------- (None) > --- PROPULSION (3) --- (None) > --- UTILITY (10) ----- Advanced Weapon Cycler Improved Overload Regulator Improved Overload Regulator > --- WEAPON (4) ------- (None) > --- INVENTORY (4) ---- Relay Coupler [Brawler] (31) Peak State ------------ > --- POWER ------------ Fission Core Light Antimatter Reactor > --- PROPULSION ------- Armored Medium Treads Heavy Treads > --- UTILITY ---------- Advanced Heat Sink Advanced Cooling System High-capacity Storage Unit High-capacity Storage Unit Energy Well Improved Weapon Cycler Layered Heavy Armor Plating Advanced Force Field Relay Coupler [Swarmer] > --- WEAPON ----------- Improved Arc Projector KE Penetrator KE Penetrator Stasis Beam > --- INVENTORY -------- Micro Fission Core Advanced Heat Sink Improved Weapon Cycler Improved Weapon Cycler Advanced Force Field Remote Shield Relay Coupler [NC] Relay Coupler [NC] Relay Coupler [Brawler] Relay Coupler [Specialist] Hypervelocity Coil Gun Mass Driver Hypervelocity Gauss Cannon Improved Proton Missile Launcher Improved Proton Missile Launcher Mini Smartbomb Launcher Improved Remote Datajack Stasis Beam Phasing Sabre [Rating: 113] Favorites ----------- Power Micro Fission Core Engine Light Angular Momentum Engine Power Core Micro Fission Core Reactor Light Antimatter Reactor Propulsion Light Treads Treads Light Treads Leg Myomer Leg Wheel Armored Huge Wheel Utility High-capacity Storage Unit Device Improved Cooling System Storage High-capacity Storage Unit Processor Advanced Targeting Computer Hackware Relay Coupler [Swarmer] Protection Reactive Plating Weapon KE Penetrator Energy Gun Lightning Gun Energy Cannon Improved EM Pulse Cannon Ballistic Gun KE Penetrator Ballistic Cannon Hypervelocity Gauss Cannon Launcher Scatter Rocket Array Special Weapon Improved Remote Datajack Slashing Weapon Phasing Sabre Build | -11 -10 -9 -8 -7 -6 -5 -5 -5 -5 -4 -4 ------- Run | Scr Mat Mat Mat Fac Fac Fac Gar Fac Ext Fac Gar Slots Evolved 12 | . . 2 2 2 2 2 . . . 2 . Power 1 | . . . . 1 . . . . . . . Propulsion 1 | . . . . . 1 . . . . . . Utility 8 | . . 2 2 . 1 2 . . . 1 . Weapon 2 | . . . . 1 . . . . . 1 . Parts Attached 347 | 7 12 21 49 40 33 30 44 37 25 21 28 Power 38 | 1 1 1 6 7 5 1 7 2 3 3 1 Engine 14 | 1 1 . 3 3 3 . 2 1 . . . Core 20 | . . 1 3 4 2 1 5 1 2 1 . Reactor 4 | . . . . . . . . . 1 2 1 Propulsion 77 | 2 6 9 17 11 8 1 7 4 4 1 7 Treads 35 | . 4 7 8 3 3 1 6 . 2 1 . Leg 13 | . . . . 3 1 . . . 2 . 7 Wheel 29 | 2 2 2 9 5 4 . 1 4 . . . Hover . | . . . . . . . . . . . . Flight . | . . . . . . . . . . . . Utility 107 | 2 2 8 13 11 11 9 13 14 7 7 10 Device 48 | . . 1 7 2 4 4 7 8 2 4 9 Storage 11 | 2 2 . 1 1 2 . 2 1 . . . Processor 3 | . . 1 . 1 . . . . . 1 . Hackware 11 | . . . . 2 . . . 5 2 1 1 Protection 34 | . . 6 5 5 5 5 4 . 3 1 . Artifact . | . . . . . . . . . . . . Weapon 125 | 2 3 3 13 11 9 19 17 17 11 10 10 Energy Gun 35 | 2 1 1 5 4 3 9 2 4 2 1 1 Energy Cannon 16 | . . . 3 3 4 2 4 . . . . Ballistic Gun 30 | . 1 2 5 4 1 2 6 3 1 2 3 Ballistic Cannon 11 | . . . . . . . 1 4 1 3 2 Launcher 8 | . . . . . 1 2 3 . . . 2 Special Weapon 18 | . 1 . . . . . 1 6 5 3 2 Impact Weapon . | . . . . . . . . . . . . Slashing Weapon 7 | . . . . . . 4 . . 2 1 . Piercing Weapon . | . . . . . . . . . . . . Special Melee Weapon . | . . . . . . . . . . . . Unidentified Prototypes 7 | . . 1 1 . 1 3 . 1 . . . Parts Lost 92 | . 1 3 12 12 8 . 21 1 2 3 29 Power 14 | . . . 3 1 3 . 3 . 1 . 3 Propulsion 13 | . . . 2 3 1 . 1 . . . 6 Utility 27 | . . 1 4 1 1 . 8 1 . 1 10 Weapon 38 | . 1 2 3 7 3 . 9 . 1 2 10 Highest Loss Streak 13 | . 1 1 4 4 3 . 13 1 1 2 10 Average Slot Usage (%) 90 | . 97 89 90 96 91 88 90 93 86 88 69 Engine 4 | . 14 . 4 7 7 7 5 2 . . . Core 5 | . . 10 3 6 4 3 4 7 7 5 4 Treads 9 | . 24 17 7 10 6 5 8 5 4 10 5 Wheel 3 | . 3 4 10 4 7 5 2 4 1 . . Device 11 | . . . 16 7 10 17 21 12 16 17 11 Storage 16 | . 28 22 22 16 13 11 11 16 17 15 10 Processor 3 | . . . . 5 6 5 5 5 . 3 4 Hackware 2 | . . . . 3 . . . 9 7 5 5 Protection 7 | . . 12 7 11 10 11 9 4 3 4 2 Energy Gun 6 | . 23 2 7 9 11 9 1 2 1 3 2 Energy Cannon 1 | . . . . 8 2 3 2 . . . . Ballistic Gun 7 | . . 19 9 1 3 . 8 5 8 10 8 Special Weapon 1 | . 1 . . . . . 1 3 2 3 2 Naked Turns 9 | . . . . . . . . . . . 9 Heaviest Build 154 | 13 74 90 90 114 136 143 134 129 145 154 139 Greatest Support 102 | 32 40 40 40 50 50 30 100 100 97 102 102 Greatest Overweight (x) 32 | . 2 3 6 10 10 5 4 4 5 1 32 Average Overweight (x) 2 | . 1 2 2 3 4 4 2 3 2 1 . Largest Inventory Capacity 20 | 8 20 20 20 20 20 20 20 20 20 20 20 Average Capacity 19 | 5 19 20 20 20 20 20 20 20 20 20 13 Most Carried 20 | 7 20 20 20 20 20 20 20 20 20 20 20 Average Carried 18 | 3 17 19 18 19 19 19 16 19 18 19 11 Final Capacity 20 | 8 20 20 20 20 20 20 20 20 20 20 4 Final Carried 20 | 7 19 20 20 18 20 20 20 20 19 19 1 Class Distribution -------------------- 36% | Hauler-Mutant 16% | Bothacker-Mutant 12% | Bothacker-Tank 12% | Hauler-Tank 6% | Scavenger-Tank 5% | Scavenger-Mutant 4% | Hauler-Gunner Dominant Class ---------------- Hauler-Mutant | -10/Materials Hauler-Mutant | -9/Materials Hauler-Mutant | -8/Materials Hauler-Tank | -7/Factory Scavenger-Tank | -6/Factory Hauler-Tank | -5/Factory Scavenger-Mutant | -5/Garrison Bothacker-Tank | -5/Factory Bothacker-Mutant | -5/Extension Bothacker-Tank | -4/Factory Bothacker-Mutant | -4/Garrison Resources | -11 -10 -9 -8 -7 -6 -5 -5 -5 -5 -4 -4 ----------- Run | Scr Mat Mat Mat Fac Fac Fac Gar Fac Ext Fac Gar Matter Collected 7508 | 198 192 817 840 595 462 245 1140 952 1071 559 437 Remotely . | . . . . . . . . . . . . Salvage Created 10518 | 59 471 821 1723 1243 841 664 1414 622 869 1179 612 Parts 521 | 2 27 75 67 44 41 36 62 35 28 75 29 Haulers Intercepted 5 | . 1 2 2 . . . . . . . . Recyclers Shooed 4 | . 1 . . . . . . . 1 2 . Parts Field Recycled . | . . . . . . . . . . . . Retrieved Matter . | . . . . . . . . . . . . Parts Self-Destructed . | . . . . . . . . . . . . Prevented . | . . . . . . . . . . . . Kills | -11 -10 -9 -8 -7 -6 -5 -5 -5 -5 -4 -4 ------- Run | Scr Mat Mat Mat Fac Fac Fac Gar Fac Ext Fac Gar Combat Hostiles Destroyed 191 | . 9 23 30 22 13 18 30 9 9 17 11 Melee 2 | . . . . . . 1 . . 1 . . Guns 115 | . 9 20 24 4 10 7 9 4 7 17 4 Cannons 33 | . . . 5 11 1 . 9 5 1 . 1 AOE 27 | . . 3 1 3 . 9 8 . . . 3 Classes Destroyed 16 | 1 5 1 1 3 1 1 1 1 . 1 . Worker 12 | . 1 2 1 2 1 2 . . . 3 . Builder 2 | . . . . . . . . . . 2 . Tunneler 1 | . . . . . . 1 . . . . . Hauler 5 | . 1 2 2 . . . . . . . . Recycler 9 | 1 1 . 2 1 . . . 1 2 1 . Operator 5 | . . . . . 1 1 . 1 1 1 . Watcher 4 | . 1 3 . . . . . . . . . Swarmer 58 | . 3 15 6 4 2 10 7 1 . 5 5 Grunt 73 | . 6 3 19 9 2 5 13 1 8 4 3 Brawler 3 | . . . . 2 1 . . . . . . Duelist 1 | . . . 1 . . . . . . . . Sentry 27 | . . 5 4 3 6 1 4 . 1 2 1 Demolisher 1 | . . . . . . . . 1 . . . Hunter 12 | . . . . 3 . . 4 3 . . 2 Programmer 15 | . . . . 2 2 2 . 3 . 6 . Behemoth 2 | . . . . . . . 2 . . . . Best Kill Streak 21 | 1 5 6 7 5 4 7 11 2 3 21 9 Combat Bots Only 11 | . 5 5 7 4 3 5 11 2 3 11 9 Max Kills in Single Turn 6 | 1 2 3 1 2 1 6 3 1 2 2 3 Gunslinging 1 | . 1 1 . . . 1 . . . . . Exploded 5 | . . 3 1 1 . 5 3 . . . 1 Melee 1 | . . . . . . 1 . . 1 . . Uniques/NPCs Destroyed . | . . . . . . . . . . . . Combat | -11 -10 -9 -8 -7 -6 -5 -5 -5 -5 -4 -4 -------- Run | Scr Mat Mat Mat Fac Fac Fac Gar Fac Ext Fac Gar Damage Taken 19284 | . 333 1238 2172 1750 1597 902 3888 947 892 1493 4072 Core 2832 | . 25 111 420 163 233 78 484 60 89 67 1102 Absorbed by Shields 2829 | . . . . . . . . 598 853 532 846 Core Remaining (%) 65 | 100 90 72 23 76 72 . . . 28 . . Volleys Fired 694 | 2 43 66 115 57 40 27 93 56 93 50 52 Largest 4 | 2 2 2 2 3 3 3 3 3 3 4 4 Hottest 215 | 80 100 60 124 204 215 215 201 159 161 186 185 Shots Fired 1423 | 4 77 131 227 149 94 59 201 96 144 138 103 Gun 1058 | 4 72 131 212 69 81 51 136 38 77 117 70 Cannon 229 | . . . 15 80 13 5 56 26 14 4 16 Launcher 16 | . . . . . . 3 6 . . . 7 Special 120 | . 5 . . . . . 3 32 53 17 10 Kinetic 708 | . . 117 135 27 26 7 90 55 70 103 78 Thermal 121 | 4 67 . . 6 22 9 13 . . . . Explosive 9 | . . . . . . 3 6 . . . . Electromagnetic 470 | . 10 14 92 116 46 40 89 9 21 18 15 Robot Hit Streak 22 | 3 12 16 20 20 17 6 22 11 16 16 12 Robot Miss Streak 8 | . 3 3 4 5 3 5 8 3 3 1 3 Penetration Max 2 | . . . . . . . 1 2 2 1 . Secondary Targets 17 | . 4 4 . 2 . 1 2 . 1 3 . Max Gunslinging Chain 1 | . 1 1 . 1 . 1 1 . 1 1 . Shots Hit Robots 1062 | 3 51 82 177 113 77 42 158 67 118 107 67 Core Hits 480 | 2 23 37 62 42 45 52 87 21 30 46 33 Critical Hits 70 | . . 1 2 1 1 3 7 19 14 13 9 Critical Kills 20 | . . . 1 . 1 2 1 8 4 2 1 Critical Parts Destroyed 44 | . . 1 1 1 . 1 5 11 9 10 5 Melee Attacks 44 | . . . . . . 6 . . 37 1 . Impact . | . . . . . . . . . . . . Slashing 44 | . . . . . . 6 . . 37 1 . Piercing . | . . . . . . . . . . . . Sneak Attacks 1 | . . . . . . . . . 1 . . Combat Hostiles . | . . . . . . . . . . . . Follow-up Attacks . | . . . . . . . . . . . . Damage Inflicted 24115 | 33 601 1316 3137 2792 1773 2019 5245 777 1572 2762 2088 Guns 14746 | 33 601 1208 2695 944 1437 746 2048 363 848 2743 1080 Cannons 3849 | . . . 236 1433 217 124 1261 266 108 12 192 Explosions 4702 | . . 108 206 415 79 1089 1936 148 . . 721 Melee 667 | . . . . . . 60 . . 607 . . Ramming 151 | . . . . . 40 . . . 9 7 95 Kinetic 9994 | . . 1084 1595 325 478 205 1360 579 627 2600 1141 Thermal 2296 | 33 465 108 206 288 518 88 389 148 . . 53 Explosive 3123 | . . . . 214 . 1089 1820 . . . . Electromagnetic 7884 | . 136 124 1336 1965 737 577 1676 50 329 155 799 Impact . | . . . . . . . . . . . . Slashing 667 | . . . . . . 60 . . 607 . . Piercing . | . . . . . . . . . . . . Highest Corruption 14 | . 1 . 1 2 9 4 4 10 11 9 14 Average Corruption 6 | . 1 . 1 1 7 3 4 6 10 6 9 Corruption Purged . | . . . . . . . . . . . . Effects 272 | . 2 . . 4 43 6 43 36 93 11 34 Message Errors 41 | . . . . 1 9 2 7 5 10 1 6 Matter Fused 50 | . . . . . 5 2 15 6 13 1 8 Heat Flow Errors 22 | . . . . . 7 . 1 4 10 . . Energy Discharges 31 | . . . . . 4 . 7 5 10 1 4 Parts Rejected 10 | . . . . . . . . . 4 2 4 Data Loss (minor) 30 | . 2 . . 1 7 2 5 5 5 1 2 Data Loss (major) 4 | . . . . . 1 . . . 1 . 2 Misfires 6 | . . . . . 1 . . 1 3 1 . Misdirections 10 | . . . . . . . . . 10 . . Targeting Errors 58 | . . . . 1 7 . 6 9 26 4 5 Weapon Failures 10 | . . . . 1 2 . 2 1 1 . 3 Overload Shots . | . . . . . . . . . . . . Overflow Damage 297 | . . . 17 46 . 10 183 39 . . 2 Projectiles 77 | . . . . 29 . 10 38 . . . . Explosions 220 | . . . 17 17 . . 145 39 . . 2 Melee . | . . . . . . . . . . . . Knockbacks 10 | . . . . . . . 2 4 2 . 2 Impact . | . . . . . . . . . . . . Kinetic 10 | . . . . . . . 2 4 2 . 2 Secondary . | . . . . . . . . . . . . Self-Inflicted Damage 405 | . . 22 118 20 72 56 85 . . . 32 Shots 10 | . . 1 2 1 1 2 3 . . . . Rammed 25 | . . . . . 1 . . . 1 1 22 Targets Rammed 28 | . . . . . 1 . . . 1 1 25 Kicked 3 | . . . . . . . . . . . 3 Crushed . | . . . . . . . . . . . . Highest Temperature 588 | 36 184 141 189 240 437 . 191 442 588 76 338 Average Temperature 83 | 20 62 33 55 74 132 . 59 114 139 36 88 Received Heat Transfer 3788 | . 138 189 999 285 393 54 636 60 230 142 662 Effects 18 | . . . . 1 10 . . 4 3 . . Shutdowns 7 | . . . . . 2 . . 3 2 . . Energy Bleed 1 | . . . . . 1 . . . . . . Interference 2 | . . . . 1 1 . . . . . . Short Circuit 1 | . . . . . 1 . . . . . . Damage (minor) 3 | . . . . . 1 . . 1 1 . . Damage (major) 4 | . . . . . 4 . . . . . . Siege Activations 1 | . . . . . . . . . . . 1 Total Turns 7 | . . . . . . . . . . . 7 Longest Duration 7 | . . . . . . . . . . . 7 Robots Corrupted 15 | . . . 1 4 2 1 4 . . . 3 Combat Hostiles 14 | . . . . 4 2 1 4 . . . 3 Parts Fried 55 | . 1 . 13 20 6 1 6 . . 1 7 Impact Corruptions 1 | . . . . . 1 . . . . . . Robots Melted . | . . . . . . . . . . . . Combat Hostiles . | . . . . . . . . . . . . Parts Melted 3 | . . . . . 2 . 1 . . . . Heat Transferred 3378 | 75 1050 100 200 300 729 200 524 100 . . 100 Parts Sabotaged . | . . . . . . . . . . . . Parts Stolen . | . . . . . . . . . . . . Parts Stripped . | . . . . . . . . . . . . Power Chain Reactions 10 | . . 1 2 3 1 . 1 1 . . 1 Missiles Intercepted . | . . . . . . . . . . . . Alert | -11 -10 -9 -8 -7 -6 -5 -5 -5 -5 -4 -4 ------- Run | Scr Mat Mat Mat Fac Fac Fac Gar Fac Ext Fac Gar Peak Influence 1153 | 5 128 294 544 344 252 431 1153 819 662 535 550 Average Influence 342 | 1 45 147 300 175 104 194 833 599 478 292 422 Maximum Alert Level 4 | . . 1 2 1 1 2 4 3 2 2 2 Low Security (%) 39 | 100 100 72 26 57 96 57 . . 4 22 . Level 1 22 | . . 27 47 42 3 32 6 8 16 58 23 Level 2 25 | . . . 26 . . 9 19 71 79 19 76 Level 3 10 | . . . . . . . 68 19 . . . Level 4 . | . . . . . . . 5 . . . . Level 5 . | . . . . . . . . . . . . High Security . | . . . . . . . . . . . . Max Security . | . . . . . . . . . . . . Squads Dispatched 35 | . 1 2 4 7 6 4 . 6 4 1 . Investigation 13 | . . . 2 4 1 1 . 2 3 . . Extermination 7 | . . . . 2 2 1 . 1 . 1 . Reinforcement 11 | . 1 2 2 1 . 2 . 2 1 . . Assault 1 | . . . . . . . . 1 . . . Garrison 3 | . . . . . 3 . . . . . . Intercept . | . . . . . . . . . . . . Construction Impeded 3 | . . . . . . . . 2 1 . . Haulers Reinforced . | . . . . . . . . . . . . Stealth | -11 -10 -9 -8 -7 -6 -5 -5 -5 -5 -4 -4 --------- Run | Scr Mat Mat Mat Fac Fac Fac Gar Fac Ext Fac Gar Distress Signals 12 | . . 1 2 . . 1 . 2 5 1 . Communications Jammed . | . . . . . . . . . . . . Distress Signals . | . . . . . . . . . . . . Times Spotted 345 | . 20 39 46 27 19 20 54 32 34 25 29 Peak Tracking Total 10 | . 6 7 9 7 5 5 10 8 7 9 8 Tactical Retreats 39 | . 1 1 5 2 1 2 15 3 1 2 6 Traps | -11 -10 -9 -8 -7 -6 -5 -5 -5 -5 -4 -4 ------- Run | Scr Mat Mat Mat Fac Fac Fac Gar Fac Ext Fac Gar Traps Triggered 23 | . 2 . 1 1 1 . 12 . 4 . 2 Indirectly . | . . . . . . . . . . . . Trap Hack Attempts . | . . . . . . . . . . . . Triggered . | . . . . . . . . . . . . Disarmed . | . . . . . . . . . . . . Reprogrammed . | . . . . . . . . . . . . Reused . | . . . . . . . . . . . . Traps Extracted . | . . . . . . . . . . . . Installed . | . . . . . . . . . . . . Triggered 2 | . . . . 1 . . 1 . . . . Machines | -11 -10 -9 -8 -7 -6 -5 -5 -5 -5 -4 -4 ---------- Run | Scr Mat Mat Mat Fac Fac Fac Gar Fac Ext Fac Gar Machines Disabled 26 | . . 2 4 11 . 2 6 . . . 1 Max in Single Turn 4 | . . 1 1 4 . 1 1 . . . 1 Garrison Relay 5 | . . . . . . . 4 . . . 1 Energy Cycler 1 | . . . . . . . . . 1 . . Machines Sabotaged . | . . . . . . . . . . . . Garrisons Compromised . | . . . . . . . . . . . . Overloaded Fab Kills . | . . . . . . . . . . . . Fab Network Shutdowns . | . . . . . . . . . . . . Hacking | -11 -10 -9 -8 -7 -6 -5 -5 -5 -5 -4 -4 --------- Run | Scr Mat Mat Mat Fac Fac Fac Gar Fac Ext Fac Gar Machines Accessed 43 | . 7 8 2 7 4 4 . 4 5 2 . Terminals 31 | . 7 7 . 4 3 1 . 3 5 1 . Fabricators 3 | . . . . 1 1 . . 1 . . . Repair Stations 1 | . . . 1 . . . . . . . . Recycling Units 1 | . . . 1 . . . . . . . . Scanalyzers 5 | . . 1 . 2 . 2 . . . . . Garrison Access 2 | . . . . . . 1 . . . 1 . Total Hacks 132 | . 26 27 4 33 9 11 . 8 11 3 . Successful 73 | . 16 17 1 25 3 6 . . 4 1 . Failed 59 | . 10 10 3 8 6 5 . 8 7 2 . Catastrophic 12 | . 1 3 . . 2 . . 4 2 . . Database Lockouts . | . . . . . . . . . . . . Manual 58 | . 11 12 2 9 5 5 . 6 6 2 . Terminals 96 | . 26 24 . 13 8 6 . 6 11 2 . Fabricators 6 | . . . . 3 1 . . 2 . . . Repair Stations 2 | . . . 2 . . . . . . . . Recycling Units 2 | . . . 2 . . . . . . . . Scanalyzers 24 | . . 3 . 17 . 4 . . . . . Garrison Access 2 | . . . . . . 1 . . . 1 . Terminal Hacks 33 | . 14 10 . 3 2 2 . . 2 . . Record 1 | . . 1 . . . . . . . . . Part Schematic 2 | . 2 . . . . . . . . . . Prototype ID Bank 7 | . 4 2 . . . 1 . . . . . Open Door 2 | . . . . . . . . . 2 . . Branch Access Points 2 | . 1 1 . . . . . . . . . Terminal Index 3 | . 1 1 . 1 . . . . . . . Fabricator Index 2 | . 1 . . . 1 . . . . . . Unreport Threat 5 | . 1 1 . 2 1 . . . . . . Locate Traps 2 | . 2 . . . . . . . . . . Registered Components 2 | . . 2 . . . . . . . . . Zone Layout 5 | . 2 2 . . . 1 . . . . . Fabricator Hacks 2 | . . . . 2 . . . . . . . Build 2 | . . . . 2 . . . . . . . Repair Station Hacks . | . . . . . . . . . . . . Recycling Unit Hacks . | . . . . . . . . . . . . Scanalyzer 20 | . . 2 . 16 . 2 . . . . . Insert Component 10 | . . 1 . 8 . 1 . . . . . Analyze 10 | . . 1 . 8 . 1 . . . . . Garrison Access Hacks 2 | . . . . . . 1 . . . 1 . Unlock Access 2 | . . . . . . 1 . . . 1 . Unauthorized Hacks 46 | . 5 11 3 9 4 2 . 2 8 2 . Terminals 15 | . 2 5 . 4 1 1 . . 2 . . Track 2 | . . 1 . 1 . . . . . . . Assimilate 1 | . 1 . . . . . . . . . . Botnet 12 | . 1 4 . 3 1 1 . . 2 . . Fabricators . | . . . . . . . . . . . . Repair Stations . | . . . . . . . . . . . . Recycling Units 1 | . . . 1 . . . . . . . . Monitor 1 | . . . 1 . . . . . . . . Scanalyzers . | . . . . . . . . . . . . Garrison Access . | . . . . . . . . . . . . Data Cores Recovered 4 | . . . . . 1 . . 1 1 1 . Used 2 | . . . . . 1 . . 1 . . . Hacking Detections 39 | . 5 8 2 7 4 3 . 4 4 2 . Full Trace Events 11 | . . . 1 3 1 1 . 2 3 . . Feedback Events 2 | . . . . . 1 . . . 1 . . Corruption 2 | . . . . . 1 . . . 1 . . Feedback Blocked . | . . . . . . . . . . . . Robot Schematics Acquired . | . . . . . . . . . . . . Robots Built 6 | . . . . 6 . . . . . . . Matter 372 | . . . . 372 . . . . . . . Time 98 | . . . . 98 . . . . . . . Total Robot Build Rating 12 | . . . . 12 . . . . . . . Part Schematics Acquired 11 | . 2 1 . 7 . 1 . . . . . Parts Built . | . . . . . . . . . . . . Matter . | . . . . . . . . . . . . Time . | . . . . . . . . . . . . Total Part Build Rating . | . . . . . . . . . . . . Parts Repaired . | . . . . . . . . . . . . Time . | . . . . . . . . . . . . Parts Recycled . | . . . . . . . . . . . . Recycled Matter . | . . . . . . . . . . . . Retrieved Matter . | . . . . . . . . . . . . Retrieved Components . | . . . . . . . . . . . . Parts Scanalyzed 10 | . . 1 . 8 . 1 . . . . . Part Schematics Acquired 9 | . . 1 . 7 . 1 . . . . . Parts Damaged . | . . . . . . . . . . . . Bothacking | -11 -10 -9 -8 -7 -6 -5 -5 -5 -5 -4 -4 ------------ Run | Scr Mat Mat Mat Fac Fac Fac Gar Fac Ext Fac Gar Used RIF Installer 1 | . . . . . . . 1 . . . . Robots Hacked 25 | . . . . . . . . 11 7 1 6 Non-combat 8 | . . . . . . . . 4 3 1 . Combat 17 | . . . . . . . . 7 4 . 6 Robot Hacks Applied 28 | . . . . . . . . 13 8 1 6 no_distress 2 | . . . . . . . . . 2 . . generate_echo 1 | . . . . . . . . . 1 . . map_walls 1 | . . . . . . . . 1 . . . randomize_corridors 1 | . . . . . . . . 1 . . . ignore_parts 1 | . . . . . . . . . 1 . . purge_threat 1 | . . . . . . . . 1 . . . map_route 1 | . . . . . . . . . . 1 . find_shortcuts 1 | . . . . . . . . 1 . . . find_garrison 1 | . . . . . . . . 1 . . . scatter_targeting 1 | . . . . . . . . 1 . . . overload_power 1 | . . . . . . . . 1 . . . amplify_resonance 2 | . . . . . . . . . . . 2 go_dormant 1 | . . . . . . . . . . . 1 overwrite_iff 3 | . . . . . . . . 3 . . . formatsys_low 1 | . . . . . . . . 1 . . . formatsys_high 9 | . . . . . . . . 2 4 . 3 Relay Couplers Released 19 | . . . . . . . 16 . . . 3 Machine Destruction 19 | . . . . . . . 16 . . . 3 Attached 9 | . . . . . . . . 5 2 1 1 Robots Rewired 25 | . . . . . . . 3 1 21 . . Allies Hacked . | . . . . . . . . . . . . Hacks Repelled . | . . . . . . . . . . . . Allies | -11 -10 -9 -8 -7 -6 -5 -5 -5 -5 -4 -4 -------- Run | Scr Mat Mat Mat Fac Fac Fac Gar Fac Ext Fac Gar Total Allies 45 | . 1 . . 6 . . 3 7 25 . 3 Largest Group 15 | . 1 1 . 3 . . 3 4 15 . 2 Highest-Rated Group 512 | . 10 10 . 30 . . 138 168 512 . 56 Highest-Rated Ally 56 | . 10 10 . 10 . . 46 47 49 . 56 Total Orders 7 | . 2 1 . . . 3 . 1 . . . STAY 1 | . 1 . . . . . . . . . . GOTO 1 | . . 1 . . . . . . . . . FOLLOW 1 | . 1 . . . . . . . . . . AID 1 | . . . . . . . . 1 . . . EXPLORE 3 | . . . . . . 3 . . . . . Ally Attacks 212 | . . . . 4 . . 11 38 149 . 10 Total Damage 4671 | . . . . 56 . . 249 555 3667 . 144 Kills 42 | . . . . . . . 3 7 30 . 2 Allies Corrupted . | . . . . . . . . . . . . Allies Melted . | . . . . . . . . . . . . Intel | -11 -10 -9 -8 -7 -6 -5 -5 -5 -5 -4 -4 ------- Run | Scr Mat Mat Mat Fac Fac Fac Gar Fac Ext Fac Gar Robot Analysis Total . | . . . . . . . . . . . . Derelict Logs Recovered . | . . . . . . . . . . . . Drone Launches 4 | . . . . . . 4 . . . . . Drone Recoveries . | . . . . . . . . . . . . Exploration | -11 -10 -9 -8 -7 -6 -5 -5 -5 -5 -4 -4 ------------- Run | Scr Mat Mat Mat Fac Fac Fac Gar Fac Ext Fac Gar Turns Passed 13700 | 62 1230 1350 1043 1624 1162 1063 1791 1151 1510 903 811 Spaces Moved 6362 | 41 618 586 372 760 604 509 787 669 705 381 330 Core 28 | 3 . . . . . . . . . . 25 Treads 3299 | . 519 452 116 455 111 134 569 20 343 381 199 Legs 192 | . . . . 21 20 . . . 45 . 106 Wheels 2843 | 38 99 134 256 284 473 375 218 649 317 . . Hover . | . . . . . . . . . . . . Flight . | . . . . . . . . . . . . Fastest Speed 50 | 50 100 120 115 120 130 140 130 140 130 185 50 Average Speed 166 | 96 169 180 144 175 154 168 174 141 169 185 164 Slowest Speed 1650 | 100 180 200 220 210 270 240 220 180 270 185 1650 Overloaded Moves . | . . . . . . . . . . . . Propulsion Burnouts . | . . . . . . . . . . . . Robots Hopped . | . . . . . . . . . . . . Cave-ins Triggered 1 | . . . . . . . . . 1 . . Exploration Rate (%) 36 | 4 71 63 30 17 19 15 85 13 68 11 44 Regions Visited 11 Branch Regions 1 Pre-discovered Areas . | . . . . . . . . . . . . Known Exits Taken 2 | . . . . . . 1 . . . 1 . Unknown Exits Taken 8 | 1 1 1 1 1 1 . . 1 1 . . Scrap Searched . | . . . . . . . . . . . . Spaces Dug 29 | . 5 . . . . 3 . . 20 1 . Terrain Destroyed 290 | . 5 2 13 50 2 59 103 15 22 7 12 Melee 24 | . . . . . . 3 . . 20 1 . Projectile 24 | . 5 . . . . . 5 2 2 6 4 AOE 242 | . . 2 13 50 2 56 98 13 . . 8 Actions | -11 -10 -9 -8 -7 -6 -5 -5 -5 -5 -4 -4 --------- Run | Scr Mat Mat Mat Fac Fac Fac Gar Fac Ext Fac Gar Total 8252 | 56 713 757 645 932 756 650 1029 804 903 477 530 Wait 364 | . 9 51 76 36 28 42 17 14 8 7 76 Move 6351 | 40 617 585 371 759 603 509 786 668 703 380 330 Hop . | . . . . . . . . . . . . Pick Up 155 | 7 21 14 15 14 20 9 28 10 5 8 4 Fast Attach 115 | 7 . 6 11 13 13 13 13 10 11 5 13 Attach 92 | . 2 5 14 10 10 3 19 6 5 9 9 Detach 18 | . . 1 3 4 3 1 4 . . 2 . Swap 140 | . 10 10 24 17 10 14 12 21 9 7 6 Drop 186 | . 11 19 16 22 28 24 25 19 7 7 8 Fire 694 | 2 43 66 115 57 40 27 93 56 93 50 52 Melee 44 | . . . . . . 6 . . 37 1 . Ram 14 | . . . . . 1 . . . . . 13 Kick 11 | . . . . . . . . . . . 11 Crush 3 | . . . . . . . . . 1 1 1 Escape Stasis 44 | . . . . . . . 30 . 9 . 5 Rewire 19 | . . . . . . . 2 . 15 . 2 Trap . | . . . . . . . . . . . . Miscellaneous 2 | . . . . . . 2 . . . . . Route ------- -11/Scrapyard -10/Materials (discovered 3 exits: *Mat / *Min x2) -9/Materials (discovered 2 exits: *Mat / *Min) -8/Materials -7/Factory (discovered 2 exits: *Fac / [*Low]) -6/Factory (discovered 2 exits: *Fac x2) -5/Factory (discovered 2 exits: *Fac / Gar) -5/Garrison (discovered 3 exits: *Fac x3) -5/Factory -5/Extension (discovered 2 exits: *Fac / [*Cet]) -4/Factory -4/Garrison History --------- Turn | Location | Event 11 | -11/Scrapyard | Discovered new exit (range 15) 63 | -11/Scrapyard | Entered Materials 255 | -10/Materials | Discovered new exit (range 15) 303 | -10/Materials | Identified exit to Mines 392 | -10/Materials | Build established: Hauler-Mutant 476 | -10/Materials | Discovered new exit (range 15) 1293 | -10/Materials | Entered another Materials area 1293 | -9/Materials | Accompanied by 1 ally 1293 | -9/Materials | Evolved 2 slots: Utility x2 1587 | -9/Materials | Discovered new exit (range 11) 2137 | -9/Materials | Identified exit to Mines 2560 | -9/Materials | Discovered new exit (range 15) 2643 | -9/Materials | Entered another Materials area 2643 | -8/Materials | Evolved 2 slots: Utility x2 2964 | -8/Materials | Lost 4 parts (3u1w) 3417 | -8/Materials | Core integrity fell below 50% 3464 | -8/Materials | Lost 4 parts (2p1n1w) 3572 | -8/Materials | Discovered new exit (range 13) 3574 | -8/Materials | Destroyed 7 combat bots 3686 | -8/Materials | Entered Factory 3686 | -7/Factory | Evolved 2 slots: Power x1, Weapon x1 4020 | -7/Factory | Build established: Hauler-Tank 4120 | -7/Factory | Discovered new exit (range 8) 4562 | -7/Factory | Lost 3 parts (2n1w) 4813 | -7/Factory | Fabricated B-36 Bruiser? 4993 | -7/Factory | Fabricated B-36 Bruiser? 5072 | -7/Factory | P-60 Hacker assimilated allied Bruiser 4e 5231 | -7/Factory | Discovered new exit (range 14) 5232 | -7/Factory | Lost 4 parts (1u3w) 5310 | -7/Factory | Entered another Factory area 5310 | -6/Factory | Evolved 2 slots: Propulsion x1, Utility x1 5446 | -6/Factory | Lost 3 parts (1p1n1w) 5663 | -6/Factory | Garrison activated, responded to threat 5753 | -6/Factory | Discovered new exit (range 15) 6044 | -6/Factory | Found Prototype Launcher 6044 | -6/Factory | Identified Scatter Rocket Array 6142 | -6/Factory | Build established: Hauler-Gunner 6321 | -6/Factory | Lost 3 parts (1p2w) 6402 | -6/Factory | Discovered new exit (range 13) 6472 | -6/Factory | Entered another Factory area 6472 | -5/Factory | Evolved 2 slots: Utility x2 6711 | -5/Factory | Found Prototype Launcher 6711 | -5/Factory | Identified Mni. Smartbomb Launcher 6715 | -5/Factory | Found Mni. Smartbomb Launcher 7184 | -5/Factory | Discovered new exit (range 16) 7535 | -5/Factory | Identified exit to Garrison 7535 | -5/Factory | Entered Garrison 7556 | -5/Garrison | Spotted B-75 Beast 7579 | -5/Garrison | Destroyed B-75 Beast 7711 | -5/Garrison | Lost 4 parts (1p1u2w) 7712 | -5/Garrison | Destroyed 11 combat bots 7765 | -5/Garrison | Spotted B-75 Beast 7766 | -5/Garrison | Triggered checkpoint 7814 | -5/Garrison | Destroyed B-75 Beast 7818 | -5/Garrison | Triggered checkpoint 7836 | -5/Garrison | Triggered checkpoint 7848 | -5/Garrison | Triggered checkpoint 7888 | -5/Garrison | Core integrity fell below 50% 7918 | -5/Garrison | Destroyed 7 combat bots 7944 | -5/Garrison | Lost 13 parts (1p1n6u5w) 8205 | -5/Garrison | Discovered new exit (range 12) 8222 | -5/Garrison | Build established: Scavenger-Tank 8316 | -5/Garrison | Triggered checkpoint 8355 | -5/Garrison | Garrison Relay disabled 8391 | -5/Garrison | Discovered new exit (range 15) 8421 | -5/Garrison | Installed Relay Interface Framework 8552 | -5/Garrison | Triggered checkpoint 8592 | -5/Garrison | Garrison Relay disabled 8661 | -5/Garrison | Discovered new exit (range 12) 8924 | -5/Garrison | Triggered checkpoint 9034 | -5/Garrison | Garrison Relay disabled 9204 | -5/Garrison | Triggered checkpoint 9262 | -5/Garrison | Garrison Relay disabled 9305 | -5/Garrison | Build established: Bothacker-Mutant 9326 | -5/Garrison | Entered Factory 9326 | -5/Factory | Accompanied by 2 allies 9626 | -5/Factory | First assault squad dispatched 10123 | -5/Factory | Build established: Bothacker-Tank 10265 | -5/Factory | Discovered new exit (range 15) 10285 | -5/Factory | System corruption reached 10% 10477 | -5/Factory | Entered Extension 10801 | -5/Extension | Energy Cycler disabled 10801 | -5/Extension | Rescued a captive Derelict 10801 | -5/Extension | Rescued a captive Derelict 10801 | -5/Extension | Rescued a captive Derelict 10804 | -5/Extension | Rescued a captive Derelict 10958 | -5/Extension | Build established: Commander-Mutant 11186 | -5/Extension | Crushed by falling debris 11327 | -5/Extension | Disrupted transfer network 11761 | -5/Extension | Build established: Bothacker-Mutant 11783 | -5/Extension | Discovered new exit (range 10) 11794 | -5/Extension | Discovered new exit (range 6) 11987 | -5/Extension | Entered Factory 11987 | -4/Factory | Evolved 2 slots: Utility x1, Weapon x1 12281 | -4/Factory | Build established: Bothacker-Tank 12719 | -4/Factory | Destroyed 11 combat bots 12883 | -4/Factory | Identified exit to Garrison 12890 | -4/Factory | Entered Garrison 12931 | -4/Garrison | Triggered checkpoint 12969 | -4/Garrison | Garrison Relay disabled 13219 | -4/Garrison | Triggered checkpoint 13248 | -4/Garrison | Spotted B-86 Titan 13289 | -4/Garrison | Destroyed 9 combat bots 13294 | -4/Garrison | Build established: Bothacker-Mutant 13303 | -4/Garrison | Lost 6 parts (1p2u3w) 13403 | -4/Garrison | Lost 8 parts (1p2n2u3w) 13453 | -4/Garrison | Lost 3 parts (2n1u) 13620 | -4/Garrison | Triggered checkpoint 13657 | -4/Garrison | System corruption reached 10% 13663 | -4/Garrison | Core integrity fell below 50% 13679 | -4/Garrison | Core integrity fell below 20% 13701 | -4/Garrison | Destroyed by Y-64 Sentinel with Wave Gun Last Messages --------------- 13673_ Slammed into Y-64 Sentinel. 13674_ Destabilizing: System interference. 13674_ Imp. Targeting Computer temporarily disabled. 13675_ Slammed into Y-64 Sentinel. 13675_ Destabilizing: Core damaged (-46). 13676_ Penetrated by Slug. 13676_ Slammed into Y-64 Sentinel. 13679_ Penetrated by Slug. 13679_ Slammed into Y-64 Sentinel. 13679_ Imp. Targeting Computer destroyed. 13679_ System corrupted by crushing effect (+4). 13680_ Slammed into Y-64 Sentinel. 13682_ Penetrated by Slug. 13685_ Slug penetrates Wall. 13688_ Acquired Unknown Device. 13688_ Identified Adv. Weapon Cycler. 13690_ Acquired Imp. Overload Regulator. 13697_ Penetrated by Slug. 13700_ Imp. Overload Regulator destroyed. 13700_ Slammed into Y-64 Sentinel. Map ----- +----------------------------------------------------+ | ????????# = ![ | | ????????# =% | | ????????# = % | | ????????#########################"" [ [= *[ | | ????????????????????????# #?????## " "! = | | ????????????????????????# #??????###### # " | | ????????????????????????# #???????????# # "! | | ????????????????????????# ############# # # | | ????????????????????????# # # | | ????????????????????????############### # # | | ??????????????????????????????????????# #" | | ??????????????????????????????????????# [=% | | ??????????????????????????????????????### ![ | | ????????????????????????????????????????# " * | | ????????????????????????????????????????### [ | | ????????????????????????????????????????# = % | | ????????????????????????????????????????# *[ | | ????????????????????????????????????????# | | ????????????????????????????????????????# | | ????????????????????????????????????????### | | ????????????????????????????????##########"! | | ????????????????????????????????# =" ^ | | ??????????????????#######???????# ^ | | ??????????????????#!! ! #???????# #####"## ^ | | ??????????????????#!Y #???????# #??????## | | ??????????????????###@###???????# #???????# | | ????????????????????# #?????????# #???????# | | ????????????????????#Y#?????????# #???????# | | ????????????????????# #########?# #???????# | | ????????????????????# ; # #?# #???????# | | ??????????????????### ##### ###^^######### | | ??????????????????# ; | | ??????????????????# + ^ | | ??????????????????############### ########### | | ????????????????????????????????# #?????????? | | ????????????????????????????????# #?????????? | | ????????????????????????????????# #?????????? | | ????????????????????????????????# #?????????? | | ????????????????????????????????# #?????????? | | ????????????????????????????????# #?????????? | | ????????????????????????????????# ?????????? | | ????????????????????????????????# #?????????? | | ????????????????????????????????# #?????????? | | ????????????????????????????????# #?????????? | | ????????????????????????????????? ??????????? | | ????????????????????????????????? ??????????? | | ?????????????????????????????????##??????????? | | ?????????????????????????????????????????????? | | ?????????????????????????????????????????????? | | ?????????????????????????????????????????????? | +----------------------------------------------------+ Best States ------------- Heat Dissipation 121 Coolant Potential 145 Energy Generation 38 Energy Capacity 900 Matter Stores 334 Matter Capacity 450 Sight Range 16 Terrain Scan Range 14 Terrain Scan Density 10 Armor Coverage 750 Resistance: KI 20 Resistance: TH 10 Resistance: EM 15 Weapon Shielding 66 Weapon Cycling 25 Phase Shifting 10 Evasion (%) 50 Targeting Accuracy 8 Recoil Reduction 3 Particle Charging 15 Offensive Hacking 10 Item Schematics ----------------- Hcp. Storage Unit | -10/Materials | Hacked Grenade Launcher | -10/Materials | Hacked Hacking Suite | -9/Materials | Scanalyzed Nuclear Core | -7/Factory | Scanalyzed Imp. Targeting Computer | -7/Factory | Scanalyzed Arm. Wheel | -7/Factory | Scanalyzed Imp. Signal Interpreter | -7/Factory | Scanalyzed Adv. Treads | -7/Factory | Scanalyzed Imp. Heat Sink | -7/Factory | Scanalyzed Particle Charger | -7/Factory | Scanalyzed Energy Well | -5/Factory | Scanalyzed Robot Schematics ------------------ None Fabricated ------------ B-36 Bruiser | x3 | -7/Factory | Preloaded B-36 Bruiser | x3 | -7/Factory | Preloaded Alien Tech Used ----------------- None Achievements -------------- None Challenges ------------ None Game ------ Seed CouplerGhostBoregun Manual? 0 Play Time 03:11:42 Cumulative 52.3 hours Start 2020.01.22 @ 18:20:55 End 2020.01.26 @ 14:46:23 Sessions 3 Manual Loads 0 Difficulty Rogue Special Mode None Game No. 24 Rogue 24 Adventurer 0 Explorer 0 Win Type - Total 0 Types 0/0/0/0/0/0/0 Lore% 23 Gallery% 51 Achievement% 39 Wizard Run 0 Options --------- ASCII 0 Keyboard 0 Movement Numpad Keybinds 0 Fullscreen 1 Font 18/SmallcapsGlow Map View 76x50 Tactical HUD 1 Map Filters NONE Filters NONE Steam 1 RUN: 9b371d9c-9769-4b04-b2d7-81bd09d387d7